[Event "The Schackveckan 2023: Chessweek Elo-tournaments Group 2"]
[Site "Göteborgs schackcentrum, Vegagatan 20, Gothenburg, Sweden"]
[Date "2023.08.10"]
[Round "6.6"]
[White "Brattgjerd, August Minh"]
[Black "Dahlin, Emil"]
[Result "1-0"]
[TimeControl "90 minutes for 40 moves + 30 minutes for the rest of the game + 30 seconds per move from move one."]
[WhiteFideId "1550446"]
[BlackFideId "1771035"]
[WhiteElo "1495"]
[BlackElo "1284"]

1. d4 {[%clk 01:29:45]} f5 {[%clk 01:30:50]} {[%emt 00:00:10]} 2. Bf4 {[%clk
01:29:35]} {[%emt 00:00:39]} Nf6 {[%clk 01:30:56]} {[%emt 00:00:25]} 3. e3
{[%clk 01:29:40]} {[%emt 00:00:26]} g6 {[%clk 01:31:16]} {[%emt 00:00:09]} 4.
Nf3 {[%clk 01:29:55]} {[%emt 00:00:13]} Bg7 {[%clk 01:31:23]} {[%emt 00:00:23]}
5. Be2 {[%clk 01:30:00]} {[%emt 00:00:26]} O-O {[%clk 01:31:04]} {[%emt
00:00:50]} 6. O-O {[%clk 01:30:03]} {[%emt 00:00:25]} d6 {[%clk 01:30:46]}
{[%emt 00:00:49]} 7. Nbd2 {[%clk 01:29:26]} {[%emt 00:01:06]} Re8 {[%clk
01:29:10]} {[%emt 00:02:07]} 8. c4 {[%clk 01:27:32]} {[%emt 00:02:24]} e6
{[%clk 01:24:53]} {[%emt 00:04:47]} 9. Bg3 {[%clk 01:23:32]} {[%emt 00:04:29]}
Nbd7 {[%clk 01:23:38]} {[%emt 00:01:46]} 10. Rc1 {[%clk 01:22:20]} {[%emt
00:01:42]} e5 {[%clk 01:19:24]} {[%emt 00:04:44]} 11. d5 {[%clk 01:19:01]}
{[%emt 00:03:48]} h6 {[%clk 01:17:27]} {[%emt 00:02:27]} 12. b4 {[%clk
01:17:16]} {[%emt 00:02:16]} g5 {[%clk 01:15:58]} {[%emt 00:01:59]} 13. h3
{[%clk 01:13:16]} {[%emt 00:04:28]} f4 {[%clk 01:06:51]} {[%emt 00:09:39]} 14.
exf4 {[%clk 01:13:24]} {[%emt 00:00:20]} exf4 {[%clk 01:07:00]} {[%emt
00:00:23]} 15. Bh2 {[%clk 01:13:24]} {[%emt 00:00:29]} Ne5 {[%clk 01:03:52]}
{[%emt 00:03:39]} 16. Nd4 {[%clk 01:06:28]} {[%emt 00:07:26]} Re7 {[%clk
00:52:34]} {[%emt 00:11:48]} 17. Re1 {[%clk 01:03:10]} {[%emt 00:03:47]} Qe8
{[%clk 00:40:28]} {[%emt 00:12:37]} 18. Qc2 {[%clk 01:01:36]} {[%emt 00:02:02]}
Qg6 {[%clk 00:36:45]} {[%emt 00:04:15]} 19. Qxg6 {[%clk 01:00:14]} {[%emt
00:01:51]} Nxg6 {[%clk 00:37:03]} {[%emt 00:00:13]} 20. Bd3 {[%clk 01:00:26]}
{[%emt 00:00:18]} Ne5 {[%clk 00:36:33]} {[%emt 00:01:01]} 21. Bb1 {[%clk
00:58:05]} {[%emt 00:02:48]} Bd7 {[%clk 00:35:00]} {[%emt 00:02:05]} 22. Ne4
{[%clk 00:52:42]} {[%emt 00:05:50]} Rae8 {[%clk 00:33:07]} {[%emt 00:02:26]} 23.
Nxf6+ {[%clk 00:48:58]} {[%emt 00:04:13]} Bxf6 {[%clk 00:33:09]} {[%emt
00:00:28]} 24. Kf1 {[%clk 00:47:50]} {[%emt 00:01:38]} Kg7 {[%clk 00:22:05]}
{[%emt 00:11:35]} 25. Bf5 {[%clk 00:46:14]} {[%emt 00:02:04]} c5 {[%clk
00:16:02]} {[%emt 00:06:35]} 26. Bxd7 {[%clk 00:43:07]} {[%emt 00:03:36]} Rxd7
{[%clk 00:10:27]} {[%emt 00:06:06]} 27. Ne6+ {[%clk 00:42:27]} {[%emt
00:01:09]} Kf7 {[%clk 00:08:52]} {[%emt 00:02:06]} 28. Red1 {[%clk 00:34:10]}
{[%emt 00:08:45]} b6 {[%clk 00:08:09]} {[%emt 00:01:15]} 29. bxc5 {[%clk
00:30:13]} {[%emt 00:04:26]} bxc5 {[%clk 00:08:24]} {[%emt 00:00:15]} 30. g3
{[%clk 00:29:52]} {[%emt 00:00:50]} Nf3 {[%clk 00:06:55]} {[%emt 00:02:00]} 31.
gxf4 {[%clk 00:29:35]} {[%emt 00:00:48]} Nxh2+ {[%clk 00:06:02]} {[%emt
00:01:23]} 32. Kg2 {[%clk 00:29:42]} {[%emt 00:00:21]} gxf4 {[%clk 00:05:45]}
{[%emt 00:00:49]} 33. Kxh2 {[%clk 00:29:03]} {[%emt 00:01:09]} Be5 {[%clk
00:04:57]} {[%emt 00:01:18]} 34. Re1 {[%clk 00:24:58]} {[%emt 00:04:34]} f3+
{[%clk 00:04:38]} {[%emt 00:00:50]} 35. Kh1 {[%clk 00:24:51]} {[%emt 00:00:35]}
Kf6 {[%clk 00:02:17]} {[%emt 00:02:53]} 36. Re3 {[%clk 00:23:49]} {[%emt
00:01:31]} Rg8 {[%clk 00:00:40]} {[%emt 00:02:08]} 37. Rxf3+ {[%clk 00:23:32]}
{[%emt 00:00:46]} Ke7 {[%clk 00:01:00]} {[%emt 00:00:12]} 38. Rg1 {[%clk
00:22:29]} {[%emt 00:01:32]} Rxg1+ {[%clk 00:00:58]} {[%emt 00:00:32]} 39. Kxg1
{[%clk 00:22:55]} {[%emt 00:00:03]} Rb7 {[%clk 00:01:04]} {[%emt 00:00:25]} 40.
Re3 {[%clk 00:17:43]} {[%emt 00:05:42]} Rb1+ {[%clk 00:00:34]} {[%emt
00:00:59]} 41. Kg2 {[%clk 00:17:53]} {[%emt 00:00:20]} Rb2 {[%clk 00:00:39]}
{[%emt 00:00:26]} 42. Nxc5 {[%clk 00:14:57]} {[%emt 00:03:26]} Rxa2 {[%clk
00:30:13]} {[%emt 00:00:55]} 43. Nd3 {[%clk 00:45:14]} {[%emt 00:00:14]} Kf6
{[%clk 00:29:29]} {[%emt 00:01:14]} 44. Nxe5 {[%clk 00:44:48]} {[%emt
00:00:56]} dxe5 {[%clk 00:29:49]} {[%emt 00:00:10]} 45. Rd3 {[%clk 00:45:11]}
{[%emt 00:00:06]} Ke7 {[%clk 00:26:48]} {[%emt 00:03:31]} 46. d6+ {[%clk
00:42:11]} {[%emt 00:03:30]} Kd7 {[%clk 00:27:02]} {[%emt 00:00:17]} 47. c5
{[%clk 00:42:05]} {[%emt 00:00:36]} Rc2 {[%clk 00:26:09]} {[%emt 00:01:23]} 48.
Rd5 {[%clk 00:41:19]} {[%emt 00:01:16]} e4 {[%clk 00:25:56]} {[%emt 00:00:43]}
49. Kg3 {[%clk 00:39:56]} {[%emt 00:01:52]} a5 {[%clk 00:25:21]} {[%emt
00:01:06]} 50. Re5 {[%clk 00:39:35]} {[%emt 00:00:51]} a4 {[%clk 00:23:09]}
{[%emt 00:02:42]} 51. Rxe4 {[%clk 00:38:07]} {[%emt 00:01:58]} Rxc5 {[%clk
00:15:36]} {[%emt 00:08:04]} 52. Rxa4 {[%clk 00:38:22]} {[%emt 00:00:15]} Rg5+
{[%clk 00:15:25]} {[%emt 00:00:40]} 53. Rg4 {[%clk 00:38:08]} {[%emt 00:00:42]}
Rf5 {[%clk 00:13:01]} {[%emt 00:02:56]} 54. Rd4 {[%clk 00:36:58]} {[%emt
00:01:40]} Rg5+ {[%clk 00:11:34]} {[%emt 00:01:57]} 55. Kh4 {[%clk 00:35:59]}
{[%emt 00:01:28]} Rf5 {[%clk 00:11:10]} {[%emt 00:00:55]} 56. f4 {[%clk
00:36:01]} {[%emt 00:00:28]} h5 {[%clk 00:11:01]} {[%emt 00:00:39]} 57. Kg3
{[%clk 00:35:36]} {[%emt 00:00:55]} Rc5 {[%clk 00:09:28]} {[%emt 00:02:03]} 58.
Rd3 {[%clk 00:35:15]} {[%emt 00:00:51]} Rc6 {[%clk 00:08:12]} {[%emt 00:01:46]}
59. f5 {[%clk 00:34:47]} {[%emt 00:00:58]} Rc5 {[%clk 00:05:46]} {[%emt
00:02:57]} 60. Kf4 {[%clk 00:34:37]} {[%emt 00:00:38]} Rc4+ {[%clk 00:05:08]}
{[%emt 00:01:10]} 61. Kg5 {[%clk 00:34:51]} {[%emt 00:00:14]} Rc5 {[%clk
00:04:42]} {[%emt 00:00:56]} 62. Kg6 {[%clk 00:35:03]} {[%emt 00:00:19]} Rc8
{[%clk 00:04:25]} {[%emt 00:00:47]} 63. Kxh5 {[%clk 00:35:17]} {[%emt
00:00:15]} Rf8 {[%clk 00:04:06]} {[%emt 00:00:50]} 64. Kg6 {[%clk 00:34:37]}
{[%emt 00:01:10]} Re8 {[%clk 00:03:29]} {[%emt 00:01:08]} 65. Kg7 {[%clk
00:33:55]} {[%emt 00:01:10]} Re1 {[%clk 00:03:39]} {[%emt 00:00:20]} 66. f6
{[%clk 00:33:15]} {[%emt 00:01:10]} Rg1 {[%clk 00:03:48]} {[%emt 00:00:22]} 67.
Kf8 {[%clk 00:33:19]} {[%emt 00:00:25]} Rg2 {[%clk 00:03:42]} {[%emt 00:00:37]}
68. f7 {[%clk 00:33:22]} {[%emt 00:00:26]} Rg1 {[%clk 00:04:01]} {[%emt
00:00:12]} 69. Re3 {[%clk 00:32:50]} {[%emt 00:00:58]} Rg2 {[%clk 00:03:34]}
{[%emt 00:01:01]} 70. Re4 {[%clk 00:31:57]} {[%emt 00:01:22]} Rg1 {[%clk
00:03:51]} {[%emt 00:00:14]} 71. Rg4 {[%clk 00:32:21]} {[%emt 00:00:05]} 1-0

[Event "The Schackveckan 2023: Chessweek Elo-tournaments Group 2"]
[Site "Göteborgs schackcentrum, Vegagatan 20, Gothenburg, Sweden"]
[Date "2023.08.11"]
[Round "7.1"]
[White "Block, Benjamin"]
[Black "Pintaric, Felix"]
[Result "0-1"]
[TimeControl "90 minutes for 40 moves + 30 minutes for the rest of the game + 30 seconds per move from move one."]
[WhiteFideId "1765493"]
[BlackFideId "1776096"]
[WhiteElo "1679"]
[BlackElo "1483"]

1. e4 {[%clk 01:30:58]} {[%emt 00:00:02]} c5 {[%clk 01:30:56]} {[%emt
00:00:05]} 2. Nf3 {[%clk 01:31:14]} {[%emt 00:00:13]} d6 {[%clk 01:31:24]}
{[%emt 00:00:02]} 3. d4 {[%clk 01:31:34]} {[%emt 00:00:10]} cxd4 {[%clk
01:31:52]} {[%emt 00:00:02]} 4. Nxd4 {[%clk 01:31:49]} {[%emt 00:00:15]} Nf6
{[%clk 01:32:17]} {[%emt 00:00:05]} 5. f3 {[%clk 01:31:58]} {[%emt 00:00:21]}
e5 {[%clk 01:32:41]} {[%emt 00:00:07]} 6. Nb3 {[%clk 01:32:19]} {[%emt
00:00:08]} Be7 {[%clk 01:33:05]} {[%emt 00:00:06]} 7. c4 {[%clk 01:32:32]}
{[%emt 00:00:16]} Be6 {[%clk 01:31:40]} {[%emt 00:01:56]} 8. Nc3 {[%clk
01:32:02]} {[%emt 00:01:00]} Nbd7 {[%clk 01:31:06]} {[%emt 00:01:04]} 9. Be3
{[%clk 01:31:30]} {[%emt 00:01:01]} a6 {[%clk 01:29:56]} {[%emt 00:01:41]} 10.
Be2 {[%clk 01:26:42]} {[%emt 00:05:17]} Rc8 {[%clk 01:27:34]} {[%emt 00:02:53]}
11. Nd5 {[%clk 01:26:35]} {[%emt 00:00:37]} O-O {[%clk 01:26:43]} {[%emt
00:01:21]} 12. O-O {[%clk 01:24:39]} {[%emt 00:02:26]} Bxd5 {[%clk 01:25:19]}
{[%emt 00:01:54]} 13. cxd5 {[%clk 01:24:59]} {[%emt 00:00:11]} Ne8 {[%clk
01:24:07]} {[%emt 00:01:41]} 14. Qd2 {[%clk 01:21:44]} {[%emt 00:03:45]} Nc5
{[%clk 01:17:53]} {[%emt 00:06:45]} 15. Nxc5 {[%clk 01:20:07]} {[%emt
00:02:06]} dxc5 {[%clk 01:18:18]} {[%emt 00:00:05]} 16. f4 {[%clk 01:17:38]}
{[%emt 00:02:59]} Bd6 {[%clk 01:16:17]} {[%emt 00:02:31]} 17. Rac1 {[%clk
01:12:53]} {[%emt 00:05:15]} exf4 {[%clk 01:07:24]} {[%emt 00:09:22]} 18. Bxf4
{[%clk 01:12:56]} {[%emt 00:00:27]} f6 {[%clk 01:07:36]} {[%emt 00:00:18]} 19.
Bg4 {[%clk 01:03:33]} {[%emt 00:09:54]} Rc7 {[%clk 01:01:12]} {[%emt 00:06:55]}
20. Be6+ {[%clk 01:02:44]} {[%emt 00:01:18]} Kh8 {[%clk 01:01:35]} {[%emt
00:00:07]} 21. e5 {[%clk 01:02:38]} {[%emt 00:00:35]} fxe5 {[%clk 01:01:11]}
{[%emt 00:00:55]} 22. Bxe5 {[%clk 01:02:55]} {[%emt 00:00:13]} Nf6 {[%clk
01:00:50]} {[%emt 00:00:51]} 23. Qe3 {[%clk 00:49:55]} {[%emt 00:13:29]} Qe7
{[%clk 00:57:07]} {[%emt 00:04:14]} 24. Rce1 {[%clk 00:47:01]} {[%emt
00:03:24]} b5 {[%clk 00:50:41]} {[%emt 00:06:55]} 25. Rf3 {[%clk 00:45:40]}
{[%emt 00:01:51]} Rd8 {[%clk 00:46:45]} {[%emt 00:04:26]} 26. Bxf6 {[%clk
00:45:33]} {[%emt 00:00:38]} gxf6 {[%clk 00:45:20]} {[%emt 00:01:55]} 27. b3
{[%clk 00:42:35]} {[%emt 00:03:28]} Be5 {[%clk 00:45:24]} {[%emt 00:00:26]} 28.
Kh1 {[%clk 00:42:30]} {[%emt 00:00:35]} Rb8 {[%clk 00:42:37]} {[%emt 00:03:16]}
29. Rf5 {[%clk 00:41:39]} {[%emt 00:01:22]} Qd6 {[%clk 00:34:13]} {[%emt
00:08:55]} 30. g4 {[%clk 00:36:21]} {[%emt 00:05:46]} Rg7 {[%clk 00:30:54]}
{[%emt 00:03:49]} 31. g5 {[%clk 00:36:04]} {[%emt 00:00:48]} Bd4 {[%clk
00:30:52]} {[%emt 00:00:31]} 32. gxf6 {[%clk 00:32:51]} {[%emt 00:03:43]} Bxe3
{[%clk 00:30:58]} {[%emt 00:00:25]} 33. fxg7+ {[%clk 00:33:10]} {[%emt
00:00:10]} Kxg7 {[%clk 00:31:16]} {[%emt 00:00:13]} 34. Rxe3 {[%clk 00:32:11]}
{[%emt 00:01:29]} Rf8 {[%clk 00:26:45]} {[%emt 00:05:00]} 35. Rg3+ {[%clk
00:25:42]} {[%emt 00:07:00]} Kh6 {[%clk 00:18:57]} {[%emt 00:08:18]} 36. Rh3+
{[%clk 00:21:21]} {[%emt 00:04:49]} Kg6 {[%clk 00:17:44]} {[%emt 00:01:44]} 37.
Rxf8 {[%clk 00:16:14]} {[%emt 00:05:37]} Qxf8 {[%clk 00:18:08]} {[%emt
00:00:07]} 38. Rg3+ {[%clk 00:15:58]} {[%emt 00:00:46]} Kh5 {[%clk 00:15:16]}
{[%emt 00:03:22]} 39. Bg4+ {[%clk 00:15:23]} {[%emt 00:01:05]} Kh6 {[%clk
00:08:37]} {[%emt 00:07:08]} 40. Kg2 {[%clk 00:12:05]} {[%emt 00:03:48]} c4
{[%clk 00:05:08]} {[%emt 00:04:01]} 41. bxc4 {[%clk 00:11:43]} {[%emt
00:00:51]} bxc4 {[%clk 00:05:25]} {[%emt 00:00:13]} 42. Re3 {[%clk 00:04:18]}
{[%emt 00:07:54]} Qf4 {[%clk 00:01:45]} {[%emt 00:04:10]} 43. Rh3+ {[%clk
00:02:38]} {[%emt 00:02:10]} Kg7 {[%clk 00:29:51]} {[%emt 00:02:25]} 44. Rg3
{[%clk 00:32:55]} {[%emt 00:00:13]} Kh8 {[%clk 00:29:52]} {[%emt 00:00:29]} 45.
Be6 {[%clk 00:32:34]} {[%emt 00:00:50]} h6 {[%clk 00:28:53]} {[%emt 00:01:29]}
46. Kh3 {[%clk 00:28:38]} {[%emt 00:04:26]} Qf1+ {[%clk 00:28:12]} {[%emt
00:01:12]} 47. Kh4 {[%clk 00:28:29]} {[%emt 00:00:39]} c3 {[%clk 00:28:32]}
{[%emt 00:00:10]} 48. d6 {[%clk 00:28:42]} {[%emt 00:00:16]} c2 {[%clk
00:28:05]} {[%emt 00:00:57]} 49. d7 {[%clk 00:28:50]} {[%emt 00:00:23]} Qf6+
{[%clk 00:28:21]} {[%emt 00:00:13]} 50. Kh5 {[%clk 00:28:47]} {[%emt 00:00:33]}
c1=Q {[%clk 00:28:02]} {[%emt 00:00:49]} 51. Rg8+ {[%clk 00:28:11]} {[%emt
00:01:06]} Kh7 {[%clk 00:28:23]} {[%emt 00:00:09]} 52. h4 {[%clk 00:26:59]}
{[%emt 00:01:42]} Qc5+ {[%clk 00:27:48]} {[%emt 00:01:05]} 53. Rg5 {[%clk
00:27:00]} {[%emt 00:00:29]} Qfxg5+ {[%clk 00:27:52]} {[%emt 00:00:27]} 54.
hxg5 {[%clk 00:27:16]} {[%emt 00:00:14]} Qxg5# {[%emt 00:00:08]} 0-1

[Event "The Schackveckan 2023: Chessweek Elo-tournaments Group 2"]
[Site "Göteborgs schackcentrum, Vegagatan 20, Gothenburg, Sweden"]
[Date "2023.08.11"]
[Round "7.2"]
[White "Gallardo, Guillermo"]
[Black "Yang, Mandi"]
[Result "1/2-1/2"]
[TimeControl "90 minutes for 40 moves + 30 minutes for the rest of the game + 30 seconds per move from move one."]
[WhiteFideId "1773488"]
[BlackFideId "1774778"]
[WhiteElo "1644"]
[BlackElo "1457"]

1. Nf3 {[%clk 01:30:48]} {[%emt 00:00:11]} Nf6 {[%clk 01:30:41]} {[%emt
00:00:20]} 2. e3 {[%clk 01:30:48]} {[%emt 00:00:30]} d5 {[%clk 01:31:00]}
{[%emt 00:00:12]} 3. b3 {[%clk 01:30:55]} {[%emt 00:00:23]} g6 {[%clk
01:31:00]} {[%emt 00:00:30]} 4. Bb2 {[%clk 01:31:15]} {[%emt 00:00:08]} Bg7
{[%clk 01:31:21]} {[%emt 00:00:11]} 5. g3 {[%clk 01:30:55]} {[%emt 00:00:48]}
O-O {[%clk 01:31:41]} {[%emt 00:00:12]} 6. Bg2 {[%clk 01:31:08]} {[%emt
00:00:16]} c5 {[%clk 01:31:37]} {[%emt 00:00:35]} 7. O-O {[%clk 01:31:00]}
{[%emt 00:00:36]} Nc6 {[%clk 01:31:58]} {[%emt 00:00:10]} 8. d4 {[%clk
01:27:59]} {[%emt 00:03:31]} Ne4 {[%clk 01:25:39]} {[%emt 00:06:49]} 9. Nbd2
{[%clk 01:22:15]} {[%emt 00:06:10]} Qb6 {[%clk 01:09:07]} {[%emt 00:17:07]} 10.
dxc5 {[%clk 01:10:15]} {[%emt 00:12:30]} Qxc5 {[%clk 01:08:44]} {[%emt
00:00:52]} 11. Bxg7 {[%clk 01:05:54]} {[%emt 00:04:50]} Kxg7 {[%clk 01:09:09]}
{[%emt 00:00:06]} 12. Nxe4 {[%clk 00:55:21]} {[%emt 00:10:58]} dxe4 {[%clk
01:09:05]} {[%emt 00:00:39]} 13. Nd2 {[%clk 00:51:48]} {[%emt 00:04:01]} f5
{[%clk 01:07:12]} {[%emt 00:02:25]} 14. Qc1 {[%clk 00:36:46]} {[%emt 00:15:30]}
Qc3 {[%clk 01:07:06]} {[%emt 00:00:39]} 15. a3 {[%clk 00:34:15]} {[%emt
00:03:00]} Be6 {[%clk 00:49:40]} {[%emt 00:17:56]} 16. Ra2 {[%clk 00:32:16]}
{[%emt 00:02:29]} Kg8 {[%clk 00:42:55]} {[%emt 00:07:14]} 1/2-1/2

[Event "The Schackveckan 2023: Chessweek Elo-tournaments Group 2"]
[Site "Göteborgs schackcentrum, Vegagatan 20, Gothenburg, Sweden"]
[Date "2023.08.11"]
[Round "7.4"]
[White "Green, David"]
[Black "Brattgjerd, August Minh"]
[Result "0-1"]
[TimeControl "90 minutes for 40 moves + 30 minutes for the rest of the game + 30 seconds per move from move one."]
[WhiteFideId "1769332"]
[BlackFideId "1550446"]
[WhiteElo "1634"]
[BlackElo "1495"]

1. e4 {[%clk 01:30:34]} {[%emt 00:00:26]} e6 {[%clk 01:07:24]} {[%emt
00:23:36]} 2. Nf3 {[%clk 01:30:56]} {[%emt 00:00:08]} d5 {[%clk 01:07:33]}
{[%emt 00:00:21]} 3. Nc3 {[%clk 01:31:18]} {[%emt 00:00:08]} Nf6 {[%clk
01:07:52]} {[%emt 00:00:11]} 4. e5 {[%clk 01:31:33]} {[%emt 00:00:15]} Nfd7
{[%clk 01:08:14]} {[%emt 00:00:07]} 5. d4 {[%clk 01:31:44]} {[%emt 00:00:20]}
c5 {[%clk 01:08:40]} {[%emt 00:00:05]} 6. Bg5 {[%clk 01:32:08]} {[%emt
00:00:05]} Qb6 {[%clk 01:08:19]} {[%emt 00:00:51]} 7. dxc5 {[%clk 01:32:11]}
{[%emt 00:00:28]} Bxc5 {[%clk 01:07:06]} {[%emt 00:01:42]} 8. Qd2 {[%clk
01:31:35]} {[%emt 00:01:06]} Nc6 {[%clk 00:58:18]} {[%emt 00:09:18]} 9. Na4
{[%clk 01:27:11]} {[%emt 00:04:54]} Qb4 {[%clk 00:57:03]} {[%emt 00:01:44]} 10.
Nxc5 {[%clk 01:25:24]} {[%emt 00:02:18]} Nxc5 {[%clk 00:54:17]} {[%emt
00:03:16]} 11. Qxb4 {[%clk 01:18:03]} {[%emt 00:07:50]} Nxb4 {[%clk 00:54:36]}
{[%emt 00:00:12]} 12. Nd4 {[%clk 01:18:10]} {[%emt 00:00:23]} h6 {[%clk
00:53:03]} {[%emt 00:02:02]} 13. Bd2 {[%clk 01:14:21]} {[%emt 00:04:18]} a5
{[%clk 00:48:34]} {[%emt 00:05:01]} 14. a3 {[%clk 01:08:40]} {[%emt 00:06:12]}
Nc6 {[%clk 00:48:13]} {[%emt 00:00:50]} 15. Nb5 {[%clk 01:05:50]} {[%emt
00:03:19]} O-O {[%clk 00:45:51]} {[%emt 00:02:52]} 16. f4 {[%clk 00:52:14]}
{[%emt 00:14:07]} f6 {[%clk 00:41:44]} {[%emt 00:04:38]} 17. exf6 {[%clk
00:49:58]} {[%emt 00:02:45]} Rxf6 {[%clk 00:40:24]} {[%emt 00:01:50]} 18. O-O-O
{[%clk 00:48:48]} {[%emt 00:01:39]} Bd7 {[%clk 00:34:45]} {[%emt 00:06:09]} 19.
Be3 {[%clk 00:41:51]} {[%emt 00:07:28]} b6 {[%clk 00:31:13]} {[%emt 00:04:02]}
20. Be2 {[%clk 00:36:33]} {[%emt 00:05:48]} Ne7 {[%clk 00:29:39]} {[%emt
00:02:03]} 21. g4 {[%clk 00:32:42]} {[%emt 00:04:21]} Ng6 {[%clk 00:20:29]}
{[%emt 00:09:40]} 22. Rdf1 {[%clk 00:28:27]} {[%emt 00:04:44]} Ne4 {[%clk
00:16:53]} {[%emt 00:04:09]} 23. a4 {[%clk 00:26:11]} {[%emt 00:02:46]} Nc5
{[%clk 00:14:25]} {[%emt 00:02:58]} 24. b3 {[%clk 00:25:10]} {[%emt 00:01:30]}
Rc8 {[%clk 00:12:18]} {[%emt 00:02:37]} 25. Kb2 {[%clk 00:23:50]} {[%emt
00:01:49]} Rcf8 {[%clk 00:12:00]} {[%emt 00:00:49]} 26. g5 {[%clk 00:20:29]}
{[%emt 00:03:51]} hxg5 {[%clk 00:10:30]} {[%emt 00:02:00]} 27. fxg5 {[%clk
00:20:41]} {[%emt 00:00:18]} Rxf1 {[%clk 00:10:16]} {[%emt 00:00:43]} 28. Rxf1
{[%clk 00:20:11]} {[%emt 00:01:00]} e5 {[%clk 00:09:32]} {[%emt 00:01:15]} 29.
Nc7 {[%clk 00:15:20]} {[%emt 00:05:19]} d4 {[%clk 00:08:30]} {[%emt 00:01:34]}
30. Bc4+ {[%clk 00:15:05]} {[%emt 00:00:45]} Kh7 {[%clk 00:06:22]} {[%emt
00:02:38]} 31. Rxf8 {[%clk 00:11:29]} {[%emt 00:04:06]} Nxf8 {[%clk 00:06:50]}
{[%emt 00:00:02]} 32. Bf2 {[%clk 00:10:55]} {[%emt 00:01:01]} Bc6 {[%clk
00:05:44]} {[%emt 00:01:39]} 33. Nd5 {[%clk 00:09:39]} {[%emt 00:01:46]} Bxd5
{[%clk 00:04:54]} {[%emt 00:01:20]} 34. Bxd5 {[%clk 00:10:06]} {[%emt
00:00:02]} Nfe6 {[%clk 00:05:23]} {[%emt 00:00:02]} 35. h4 {[%clk 00:09:12]}
{[%emt 00:01:23]} e4 {[%clk 00:04:14]} {[%emt 00:01:40]} 36. Kc1 {[%clk
00:07:56]} {[%emt 00:01:47]} Nf4 {[%clk 00:03:58]} {[%emt 00:00:46]} 37. Kd1
{[%clk 00:06:41]} {[%emt 00:01:45]} Nxd5 {[%clk 00:04:11]} {[%emt 00:00:17]} 38.
Bxd4 {[%clk 00:06:54]} {[%emt 00:00:16]} Nf4 {[%clk 00:03:19]} {[%emt
00:01:23]} 39. Kd2 {[%clk 00:06:15]} {[%emt 00:01:08]} Nfe6 {[%clk 00:03:00]}
{[%emt 00:00:48]} 40. Bg1 {[%clk 00:05:16]} {[%emt 00:01:28]} Kg6 {[%clk
00:03:00]} {[%emt 00:00:33]} 41. Kc3 {[%clk 00:05:35]} {[%emt 00:00:09]} Kf5
{[%clk 00:00:48]} {[%emt 00:02:42]} 42. Kc4 {[%clk 00:05:31]} {[%emt 00:00:35]}
Kg4 {[%clk 00:30:09]} {[%emt 00:01:09]} 43. h5 {[%clk 00:34:59]} {[%emt
00:01:02]} Kxh5 {[%clk 00:30:05]} {[%emt 00:00:33]} 44. Kb5 {[%clk 00:35:17]}
{[%emt 00:00:13]} Nd7 {[%clk 00:29:24]} {[%emt 00:01:10]} 45. Kc6 {[%clk
00:35:06]} {[%emt 00:00:42]} Nec5 {[%clk 00:29:29]} {[%emt 00:00:24]} 46. c3
{[%clk 00:34:55]} {[%emt 00:00:41]} Ne5+ {[%clk 00:28:34]} {[%emt 00:01:26]} 47.
Kxb6 {[%clk 00:33:46]} {[%emt 00:01:39]} Nxb3 {[%clk 00:28:50]} {[%emt
00:00:13]} 48. Kb5 {[%clk 00:33:52]} {[%emt 00:00:25]} Kxg5 {[%clk 00:27:45]}
{[%emt 00:01:35]} 49. c4 {[%clk 00:33:39]} {[%emt 00:00:43]} Nd3 {[%clk
00:26:53]} {[%emt 00:01:22]} 0-1